[Event "29th Bosnjaci Open 2025"]
[Site "Bosnjaci"]
[Date "2025.01.04"]
[Round "3.6"]
[White "Hadzovic, Amir"]
[Black "Faukovic, Matija"]
[Result "1-0"]
[ECO "B23"]
[WhiteElo "2316"]
[BlackElo "2107"]
[Annotator "TA"]
[PlyCount "87"]
[EventDate "2025.01.04"]
[EventType "swiss"]
[EventCountry "CRO"]
[SourceTitle "playchess.com"]
[Source "ChessBase"]
[SourceQuality "1"]
[TimeControl "5400+30"]

{[%evp 9,87,-29,-27,-42,-41,-50,0,-25,-13,-18,46,60,145,160,200,60,68,76,68,61,75,64,157,-71,-63,-104,-65,-52,-25,-4,0,-7,0,0,68,68,91,91,89,45,83,89,119,110,155,139,222,212,223,208,222,220,200,143,269,0,457,422,448,415,618,606,536,529,523,500,467,397,520,362,639,646,633,531,29991,29992,29992,29990,29990,29991]} 1. e4 {[%emt 0:00:02]} c5 {[%emt 0:00:09]} 2. Nc3 {[%emt 0:00:09]} Nc6 {[%emt 0:00:44]} 3. f4 {[%emt 0:00:14]} g6 {[%emt 0:00:34]} 4. Bc4 {[%emt 0:00:14]} Bg7 {[%emt 0:00:12]} 5. d3 {[%emt 0:00:26]} e6 {[%emt 0:00:18]} 6. a3 {[%emt 0:01:12]} Nge7 {[%emt 0:00:13]} 7. Ba2 {[%emt 0:00:08]} O-O {[%emt 0:00:13]} 8. h4 $1 {[%emt 0:00:22]} d5 {[%emt 0:06:34]} (8... b5 $5) 9. h5 {[%emt 0:00:36]} dxe4 {[%emt 0:01:19]} (9... b5 $11) 10. Nxe4 $14 {[%emt 0:00:40]} e5 {[%emt 0:01:02]} (10... b5 $14) 11. hxg6 $16 {[%emt 0:00:38] White is more active.} hxg6 {[%emt 0:01:37]} 12. Nh3 {[%emt 0:06:57]} (12. fxe5 $18 {Hoping for Bg5.} Nxe5 13. Nf3) 12... Nd5 $14 {[%emt 0:04:58]} 13. fxe5 {[%emt 0:10:35]} Nxe5 {[%emt 0:00:40]} 14. Bg5 {[%emt 0:00:49]} Nf6 $1 {[%emt 0:22:42]} 15. Nhf2 {[%emt 0:08:42]} (15. Nxc5 Neg4 16. Ne4 Qb6 $17) 15... Qb6 {[%emt 0:09:50]} (15... Bf5 $14) 16. Qc1 $2 {[%emt 0:09:48]} (16. Bxf6 $16 {keeps the pressure on.} Bxf6 17. Nxf6+ Qxf6 18. Ne4) 16... Nfg4 $17 {[%emt 0:13:35][%cal Oc5c4] Strongly threatening ...c4!.} 17. O-O {[%emt 0:25:04]} Nxf2 {[%emt 0:09:45]} (17... Bf5 {looks sharper.} 18. a4 c4 19. a5 Qc6) 18. Nxf2 {[%emt 0:00:48]} Be6 {[%emt 0:01:49]} 19. Bxe6 {[%emt 0:00:33]} Qxe6 {[%emt 0:00:27]} 20. Qe3 {[%emt 0:02:22]} f5 {[%emt 0:03:49]} 21. Qxc5 {[%emt 0:04:58]} Rac8 {[%emt 0:03:58]} (21... f4 $11) 22. Qe3 $1 $14 {[%emt 0:01:38]} Qd5 {[%emt 0:06:16]} (22... Rxc2 $2 23. d4 $18 (23. Qxa7 Qd6 $19)) 23. c3 {[%emt 0:01:02]} Qb5 {[%emt 0:00:39]} 24. Bh6 {[%emt 0:04:34]} (24. Qxa7 f4 25. a4 Qxb2 $11) 24... Bxh6 {[%emt 0:02:17]} 25. Qxh6 {[%emt 0:00:05]} Rc6 {[%emt 0:00:12]} (25... Qxb2 $2 26. d4 $18) 26. Rae1 {[%emt 0:01:34]} Nf7 {[%emt 0:02:19]} 27. Qd2 {[%emt 0:00:24]} g5 {[%emt 0:01:47]} (27... Rb6 $16) 28. d4 $18 {[%emt 0:03:04]} Qd5 {[%emt 0:01:56]} 29. Nd3 {[%emt 0:00:53]} Rh6 {[%emt 0:01:02]} 30. Ne5 {[%emt 0:00:30]} f4 {[%emt 0:00:07]} 31. Ng4 {[%emt 0:02:12]} Rb6 {[%emt 0:00:50]} (31... Re6 $16 {was necessary.} 32. Qd1 Kg7 33. Rxe6 Qxe6) 32. Ne5 $2 {[%emt 0:05:39]} ({White should play} 32. Re7 $18) 32... Nh6 $2 {[%emt 0:00:13][%mdl 8192]} (32... Rh6 $11 {and Black is okay.}) 33. c4 {[%emt 0:00:34][%cal Bc3c4,Bc4c5][%mdl 32]} Qd8 {[%emt 0:00:03]} 34. c5 {[%emt 0:01:22]} Ra6 {[%emt 0:00:58]} (34... Rbf6 $142 35. d5 Qc8) 35. d5 {[%emt 0:00:50]} Nf5 {[%emt 0:00:08]} 36. d6 {[%emt 0:00:42]} Nxd6 {[%emt 0:02:39]} 37. cxd6 {[%emt 0:00:22]} Rxd6 {[%emt 0:00:02]} 38. Qf2 {[%emt 0:01:08]} Kg7 {[%emt 0:01:15]} 39. Ng4 {[%emt 0:02:09]} Rh8 $2 {[%emt 0:00:40]} (39... Qb6 40. Qxb6 Rxb6 41. Re7+ Rf7) 40. Re5 {[%emt 0:01:07]} Rd2 {[%emt 0:00:45]} 41. Qc5 {[%emt 0:00:37]} Rxg2+ {[%emt 0:01:06]} 42. Kxg2 {[%emt 0:00:08]} Qd2+ {[%emt 0:00:04]} 43. Nf2 {[%emt 0:01:25]} f3+ {[%emt 0:00:20]} 44. Kg1 {[%emt 0:00:12]} 1-0

[Event "29th Bosnjaci Open 2025"]
[Site "Bosnjaci"]
[Date "2025.01.04"]
[Round "3.7"]
[White "Ljubicic, Mario"]
[Black "Zufic, Miroslav"]
[Result "1-0"]
[ECO "A04"]
[WhiteElo "2115"]
[BlackElo "2313"]
[Annotator "TA"]
[PlyCount "117"]
[EventDate "2025.01.04"]
[EventType "swiss"]
[EventCountry "CRO"]
[SourceTitle "playchess.com"]
[Source "ChessBase"]
[SourceQuality "1"]
[TimeControl "5400+30"]

{[%evp 18,117,0,-13,26,30,37,17,32,5,116,106,113,101,113,106,141,147,128,79,67,37,146,145,142,87,107,74,81,75,137,143,140,54,181,125,147,129,179,108,118,54,54,52,64,76,69,68,238,235,677,-189,216,218,218,219,192,127,120,107,219,120,137,113,219,216,219,219,219,219,219,219,219,219,219,219,219,219,219,219,219,219,247,219,247,174,174,174,174,174,267,166,232,158,274,267,29973,29973,29975,29974,29982,29982]} 1. e4 {[%emt 0:03:40]} c5 {[%emt 0:00:00]} 2. Nf3 {[%emt 0:00:17]} d6 {[%emt 0:00:16]} 3. d3 {[%emt 0:00:09]} Nc6 {[%emt 0:00:45]} 4. g3 {[%emt 0:00:08]} g6 {[%emt 0:00:44]} 5. Bg2 {[%emt 0:00:25]} Bg7 {[%emt 0:00:07]} 6. O-O {[%emt 0:00:10]} e5 {[%emt 0:00:46]} 7. c3 {[%emt 0:00:17]} Nge7 {[%emt 0:00:27]} 8. a3 {[%emt 0:00:10]} O-O {[%emt 0:04:29]} 9. b4 {[%emt 0:00:09]} a6 {[%emt 0:01:18]} 10. Be3 {[%emt 0:03:52]} cxb4 {[%emt 0:06:47]} (10... f5 {keeps more tension.} 11. Ng5 Kh8 12. Qb3 f4) 11. axb4 {[%emt 0:01:56]} Be6 {[%emt 0:01:04]} 12. Qd2 {[%emt 0:09:36]} d5 {[%emt 0:10:08]} 13. Ng5 {[%emt 0:07:03]} Bg4 {[%emt 0:12:33]} (13... d4 $11 {remains equal.} 14. Nxe6 fxe6 15. cxd4 Nxd4) 14. exd5 $1 $16 {[%emt 0:04:38]} Nxd5 {[%emt 0:00:44]} 15. Bc5 {[%emt 0:00:31]} Nde7 {[%emt 0:14:12]} 16. Na3 {[%emt 0:27:18]} Qd7 {[%emt 0:17:09]} 17. Nc4 {[%emt 0:10:24]} Rad8 {[%emt 0:02:15]} 18. h3 {[%emt 0:05:31]} (18. Ne3 $142) 18... Bf5 $16 {[%emt 0:02:12]} 19. Nd6 {[%emt 0:01:22]} (19. Rfd1 Qxd3 20. Qxd3 Rxd3 21. Bxc6 Nxc6 22. Bxf8 Bxf8 23. Rxd3 Bxd3 24. Nb2) 19... Bh6 {[%emt 0:08:29]} (19... h6 $14 20. g4 hxg5 21. gxf5 Bf6) 20. h4 $1 $16 {[%emt 0:05:23]} Be6 {[%emt 0:03:38]} 21. Qe2 {[%emt 0:05:34]} (21. Qb2 $142) 21... Bd5 $16 {[%emt 0:07:15]} 22. Bxd5 {[%emt 0:03:36]} Nxd5 {[%emt 0:00:02]} 23. Nde4 $1 {[%emt 0:01:43]} Bg7 {[%emt 0:03:03]} (23... Rfe8 $2 24. c4 Bg7 25. cxd5 $18) (23... f5 $142) 24. Bxf8 $16 {[%emt 0:01:00]} Rxf8 {[%emt 0:00:07]} 25. Nc5 {[%emt 0:01:24]} (25. Rfc1 $16) 25... Qe7 {[%emt 0:02:19]} ({Black should play} 25... Nxc3 $14 26. Qd2 Qd4) 26. Rac1 {[%emt 0:00:55]} (26. Nge4 $18) 26... h6 {[%emt 0:01:36]} 27. Nf3 {[%emt 0:01:51]} a5 {[%emt 0:00:11]} (27... Qc7 $16 28. h5 g5) 28. Qe4 {[%emt 0:02:12]} (28. Rfe1 $1 $18) 28... Rd8 $16 {[%emt 0:00:07]} 29. b5 {[%emt 0:01:59]} (29. h5 $1 $16 {[%cal Rh5g6]} gxh5 30. Kg2) 29... Qxc5 $14 {[%emt 0:00:16]} 30. bxc6 {[%emt 0:00:13]} (30. Qc4 {simplifies} Qxc4 31. dxc4 Nde7 32. bxc6 Nxc6 33. Rfd1) 30... bxc6 {[%emt 0:00:52]} 31. Nxe5 {[%emt 0:01:36]} Nxc3 {[%emt 0:00:16]} 32. Nxc6 {[%emt 0:00:43]} Rd6 $2 {[%emt 0:01:31]} (32... Nxe4 $14 33. Rxc5 (33. Nxd8 $2 Nc3 $19) 33... Nxc5 34. Nxd8 a4) 33. Qe8+ $1 $18 {[%emt 0:00:36]} Bf8 $2 {[%emt 0:00:13]} (33... Kh7) 34. Nd8 $4 {[%emt 0:00:30][%mdl 8192] [#]} (34. Ne5 $18 Qa7 35. Rxc3) 34... Rf6 $4 {[%emt 0:00:39][%mdl 8192]} (34... Rxd3 $2 35. Qxf7+ (35. Nxf7 Rxg3+ 36. Kh2 Rf3 $11) 35... Kh8 36. Ne6 $18 (36. Qxg6 Rxd8 37. Qf6+ Kg8 $18)) (34... Rxd8 $1 $19 35. Qxd8 Ne2+ 36. Kg2 Nxc1) 35. Qe1 $18 {[%emt 0:00:27]} Qd4 {[%emt 0:00:55]} 36. Qxc3 {[%emt 0:00:29]} Qxd8 {[%emt 0:00:05]} 37. Qc8 {[%emt 0:00:24]} (37. Qc7 $18 Qxd3 38. Qxa5) 37... Qxd3 $16 {[%emt 0:00:55]} 38. Rcd1 {[%emt 0:00:24]} Qf5 {[%emt 0:01:00] [#]} (38... Qa6 $16 39. Rd8 Qxc8 40. Rxc8 Kg7) 39. Qa8 {[%emt 0:00:27]} ({White should try} 39. Qd8 $1 $18) 39... Kg7 {[%emt 0:00:00]} 40. Rd5 {[%emt 0:00:38]} Qf3 {[%emt 0:00:23]} (40... Ra6 $16 41. Qxa6 Qxd5) 41. Rxa5 $18 {[%emt 0:00:10]} ({Less strong is} 41. Qxa5 Bd6 42. Qd2 Bxg3 $14) 41... Qxa8 {[%emt 0:00:39]} 42. Rxa8 {[%emt 0:00:03]} h5 {[%emt 0:00:20]} 43. Rc1 {[%emt 0:00:16]} Rf5 {[%emt 0:00:07]} 44. Kg2 {[%emt 0:00:21]} Bc5 {[%emt 0:00:52]} 45. Ra2 {[%emt 0:00:26]} Bd4 {[%emt 0:00:37]} 46. Rd1 {[%emt 0:00:15]} Bc3 {[%emt 0:00:26]} 47. Rd3 {[%emt 0:00:20]} Bb4 {[%emt 0:00:29]} 48. Rf3 {[%emt 0:00:36]} Re5 {[%emt 0:00:05]} 49. Ra7 {[%emt 0:00:31]} Be7 {[%emt 0:00:05]} 50. Rb7 {[%emt 0:00:17]} Re1 {[%emt 0:00:18]} 51. Re3 {[%emt 0:00:49]} Rxe3 {[%emt 0:00:02]} 52. fxe3 {[%emt 0:00:02]} Bd6 {[%emt 0:00:47]} 53. Kf3 {[%emt 0:00:19]} Be5 {[%emt 0:01:50]} (53... Kf6 $142 54. Rb6 Ke6) 54. g4 $18 {[%emt 0:01:18]} Bf6 {[%emt 0:00:32]} (54... hxg4+ 55. Kxg4 Bd6) 55. Rb5 {[%emt 0:01:13]} Bxh4 {[%emt 0:00:29]} (55... hxg4+ $16 {keeps fighting.} 56. Kxg4 Be7) 56. gxh5 $18 {[%emt 0:00:06]} f5 $2 {[%emt 0:00:32]} (56... gxh5 $18 57. Rxh5 Be7) 57. Kf4 {[%emt 0:01:33]} Bd8 {[%emt 0:00:46]} 58. Rd5 Bc7+ {[%emt 0:00:04]} 59. Kg5 1-0

[Event "29th Bosnjaci Open 2025"]
[Site "Bosnjaci"]
[Date "2025.01.04"]
[Round "3.8"]
[White "Kovac, Petar"]
[Black "Ekmescic, Tarik"]
[Result "1/2-1/2"]
[ECO "D12"]
[WhiteElo "2289"]
[BlackElo "1967"]
[Annotator "TA"]
[PlyCount "34"]
[EventDate "2025.01.04"]
[EventType "swiss"]
[EventCountry "CRO"]
[SourceTitle "playchess.com"]
[Source "ChessBase"]
[SourceQuality "1"]
[TimeControl "5400+30"]

{[%evp 13,34,34,32,8,18,16,17,-29,-8,-17,-30,-31,25,-66,-51,-134,-135,-136,-143,-365,-377,-353,-150]} 1. d4 {[%emt 0:00:03]} d5 {[%emt 0:00:15]} 2. c4 {[%emt 0:00:06]} c6 {[%emt 0:00:05]} 3. Nf3 {[%emt 0:00:19]} Nf6 {[%emt 0:00:06]} 4. e3 {[%emt 0:00:57]} Bf5 {[%emt 0:06:08]} 5. Nc3 {[%emt 0:00:43]} e6 {[%emt 0:00:09]} 6. Nh4 {[%emt 0:01:05]} Bg6 {[%emt 0:02:17]} 7. Nxg6 {[%emt 0:05:05]} hxg6 {[%emt 0:00:02]} 8. Qc2 {[%emt 0:00:54]} Bd6 {[%emt 0:04:47]} 9. Bd2 {[%emt 0:08:04]} Nbd7 {[%emt 0:11:22][%cal Bb8d7,Bd7c5,Bc5e4][%mdl 32]} 10. e4 {[%emt 0:09:31]} (10. g3 $142) 10... dxe4 {[%emt 0:06:32]} (10... Bxh2 11. exd5 Ng4 12. dxc6 (12. dxe6 Ndf6 $16) 12... bxc6 13. Be2 $18) (10... Rxh2 11. Rxh2 Bxh2 12. exd5 $14) 11. Nxe4 {[%emt 0:00:36]} Nxe4 {[%emt 0:02:30]} (11... Bxh2 $6 12. Ng5 $16) 12. Qxe4 {[%emt 0:00:06]} Rh4 {[%emt 0:05:50] Inhibits g3.} (12... Rxh2 $2 13. Rxh2 Bxh2 14. g3 $18) (12... c5 $15) 13. Qd3 {[%emt 0:01:39]} (13. f4 $1 $11) 13... c5 {[%emt 0:05:25]} (13... Rxh2 $6 14. Rxh2 Bxh2 15. g3 $14) 14. dxc5 {[%emt 0:22:10]} ({Better is} 14. g3 $15 Rxd4 15. Qe2) 14... Nxc5 $17 {[%emt 0:02:03]} 15. Qc2 {[%emt 0:01:31] [#]} Ne4 $1 {[%emt 0:27:13][%cal Oe4d2] White must now prevent ...Nxd2!.} (15... Rxh2 16. Rxh2 Bxh2 17. g3 $16) 16. Qa4+ $2 {[%emt 0:14:44]} (16. g3 $17 Nxd2 17. Qxd2) 16... Kf8 $19 {[%emt 0:00:57]} 17. Be3 {[%emt 0:10:42][%cal Oe1c1] [#]} Bc5 {[%emt 0:07:00]} ({Inferior is} 17... Bxh2 18. Rd1 Bd6 19. Rxh4 Qxh4 20. c5 $11) (17... b5 $1 $19 {[%cal Rb5a4] is more deadly.} 18. Qc2 Qa5+ (18... Bxh2 $2 19. Rxh2 Qa5+ 20. Ke2 $18) 19. Ke2 bxc4 (19... Bxh2 $2 20. g3 $18)) 1/2-1/2

[Event "29th Bosnjaci Open 2025"]
[Site "Bosnjaci"]
[Date "2025.01.04"]
[Round "3.9"]
[White "Bobanac, Miro"]
[Black "Pap, Misa"]
[Result "1/2-1/2"]
[ECO "A10"]
[WhiteElo "2157"]
[BlackElo "2436"]
[Annotator "TA"]
[PlyCount "170"]
[EventDate "2025.01.04"]
[EventType "swiss"]
[EventCountry "CRO"]
[SourceTitle "playchess.com"]
[Source "ChessBase"]
[SourceQuality "1"]
[TimeControl "5400+30"]

{[%evp 75,170,105,225,223,213,5,108,111,106,0,7,14,8,0,0,0,21,0,0,0,0,0,0,0,0,0,0,0,0,0,0,0,6,11,22,18,34,36,36,0,0,0,0,0,83,87,85,64,245,245,238,227,237,205,339,242,362,374,349,125,331,248,234,-153,29,29,29,29,29,29,29,29,29,29,29,29,29,29,29,29,29,29,29,29,29,29,29,29,33,33,33,0,0,0,0,0,8]} 1. Nf3 {[%emt 0:00:18]} f5 {[%emt 0:00:17]} 2. c4 {[%emt 0:01:22]} Nf6 {[%emt 0:00:14]} 3. Nc3 {[%emt 0:00:49]} e6 {[%emt 0:02:35]} 4. g3 {[%emt 0:01:09]} b6 {[%emt 0:00:06]} 5. Bg2 {[%emt 0:00:23]} Bb7 {[%emt 0:00:05]} 6. O-O {[%emt 0:00:24]} Bb4 {[%emt 0:02:07]} 7. d3 {[%emt 0:02:18]} O-O {[%emt 0:01:56]} 8. a3 {[%emt 0:03:33]} Bxc3 {[%emt 0:05:57]} 9. bxc3 {[%emt 0:00:14]} Qe7 {[%emt 0:05:15]} 10. a4 {[%emt 0:04:11]} a5 {[%emt 0:02:31]} 11. Ba3 {[%emt 0:10:08]} d6 {[%emt 0:00:36]} 12. Qb3 {[%emt 0:09:34]} Nbd7 {[%emt 0:01:38]} 13. Nd4 {[%emt 0:04:30]} Bxg2 {[%emt 0:00:12]} 14. Kxg2 {[%emt 0:00:08]} Qf7 {[%emt 0:03:56]} 15. Nb5 {[%emt 0:06:58]} Rac8 {[%emt 0:14:06]} 16. Na7 {[%emt 0:00:40]} Rb8 {[%emt 0:01:48]} 17. Nb5 {[%emt 0:00:09]} Nc5 {[%emt 0:01:03]} 18. Qc2 {[%emt 0:03:11]} Qd7 {[%emt 0:08:59]} 19. Bxc5 {[%emt 0:11:51]} dxc5 {[%emt 0:02:21]} 20. Rad1 {[%emt 0:04:36]} c6 {[%emt 0:01:15]} 21. Na3 {[%emt 0:00:12]} e5 {[%emt 0:00:10]} 22. Qb2 {[%emt 0:04:31]} Rfd8 {[%emt 0:07:42]} 23. Nc2 {[%emt 0:00:17]} Qe6 {[%emt 0:00:15]} 24. Na3 {[%emt 0:05:31]} h5 {[%emt 0:04:13]} 25. Qc1 {[%emt 0:02:04]} f4 {[%emt 0:00:57]} 26. e3 {[%emt 0:13:43]} f3+ {[%emt 0:08:03]} 27. Kxf3 {[%emt 0:01:41]} Rxd3 {[%emt 0:00:13]} 28. Kg2 {[%emt 0:04:03]} e4 {[%emt 0:00:14]} 29. Rxd3 {[%emt 0:01:07]} exd3 {[%emt 0:00:06]} 30. f3 {[%emt 0:00:04]} Rd8 {[%emt 0:02:50]} 31. Qd2 {[%emt 0:00:15]} h4 {[%emt 0:00:27]} 32. e4 {[%emt 0:00:52]} h3+ {[%emt 0:00:20]} 33. Kg1 {[%emt 0:00:47]} Nh7 {[%emt 0:06:24]} 34. Rd1 {[%emt 0:01:57]} Qe5 {[%emt 0:03:14]} 35. Nb1 {[%emt 0:00:59]} Ng5 {[%emt 0:04:56]} 36. Qe3 {[%emt 0:00:40]} Rf8 {[%emt 0:02:11]} 37. Nd2 {[%emt 0:00:30]} Qf6 {[%emt 0:02:20]} 38. f4 {[%emt 0:00:48]} (38. Qxd3 $2 Rd8 (38... Nxf3+ 39. Nxf3 Qxf3 40. Rd2 $17) 39. Qf1 $19 (39. Qc2 $2 Rxd2 40. Rxd2 Nxf3+ 41. Kf1 Nxd2+ $19)) 38... Nf7 {[%emt 0:00:15]} (38... Ne6 $16) 39. e5 $1 $18 {[%emt 0:00:37]} (39. Qxd3 $6 g5 $14) 39... Qe6 {[%emt 0:01:20]} 40. Ne4 $2 {[%emt 0:01:04]} (40. Qxd3 $18 {Threatens to win with Ne4.} Rd8 41. Qe2) 40... Qxc4 {[%emt 0:00:37]} (40... Rd8 $1 $11) 41. Qxd3 $16 {[%emt 0:00:09]} (41. Rxd3 $6 Qxa4 42. Nf2 Re8 $11) 41... Qa2 {[%emt 0:00:32]} 42. Nf2 {[%emt 0:00:50]} (42. Qd2 $1 $16 {[%cal Rd2a2]} Qxa4 43. Qe2) 42... Nxe5 {[%emt 0:00:31]} (42... Qxa4 $2 43. e6 (43. Nxh3 Rd8 $15) 43... Qb3 44. e7 $18 (44. exf7+ Qxf7 45. Nxh3 Qf5 $18)) 43. Qe4 {[%emt 0:01:28]} Nf7 $1 {[%emt 0:01:26]} 44. Nxh3 {[%emt 0:00:10]} b5 {[%emt 0:00:18]} 45. Qxc6 {[%emt 0:00:54]} Qxa4 {[%emt 0:00:32]} 46. Rd7 {[%emt 0:00:19]} Qa1+ {[%emt 0:02:00]} 47. Kg2 {[%emt 0:00:20]} Qa2+ {[%emt 0:00:44]} 48. Nf2 {[%emt 0:00:31]} Ne5 {[%emt 0:00:54]} 49. Qd5+ {[%emt 0:00:18]} Qxd5+ {[%emt 0:00:05]} 50. Rxd5 {[%emt 0:00:05]} Nc4 {[%emt 0:00:04]} 51. Rxc5 {[%emt 0:00:12]} a4 {[%emt 0:01:52]} 52. Nd3 $1 {[%emt 0:00:09]} a3 {[%emt 0:00:25]} 53. Nb4 {[%emt 0:00:07]} Rb8 {[%emt 0:02:12]} 54. Kf3 {[%emt 0:00:23]} Re8 {[%emt 0:00:52]} 55. Rxb5 {[%emt 0:00:55]} Re3+ {[%emt 0:00:01]} 56. Kg4 {[%emt 0:00:17]} Rxc3 {[%emt 0:00:05]} 57. Rb8+ {[%emt 0:00:25]} Kh7 {[%emt 0:00:12]} 58. Ra8 {[%emt 0:00:19]} Ne3+ {[%emt 0:00:48]} 59. Kh4 {[%emt 0:00:38]} Rb3 {[%emt 0:00:33]} (59... Kg6 $11) 60. Nc6 $16 {[%emt 0:00:35]} Nf1 {[%emt 0:00:36]} 61. Nd4 {[%emt 0:01:16]} Rb4 $2 {[%emt 0:00:50]} ({Black should try} 61... Rd3 $14) 62. Ne6 {[%emt 0:00:23]} Nxh2 {[%emt 0:00:57]} 63. Rxa3 {[%emt 0:00:50]} Kg6 {[%emt 0:01:05] [#]} 64. Ng5 $1 {[%emt 0:01:32]} Rb6 {[%emt 0:00:35]} (64... Nf1 $142 65. Rf3 Nd2) 65. Ra1 {[%emt 0:00:13]} Kf5 {[%emt 0:00:18]} (65... Rb3 {was worth a try.} 66. Ra6+ Kf5) 66. Ra5+ $18 {[%emt 0:00:29]} Kf6 {[%emt 0:00:09]} 67. Re5 $2 {[%emt 0:00:52]} (67. g4 $18 {is the precise move to win.}) 67... Nf1 $2 {[%emt 0:00:51]} (67... Rb3 $16) 68. Re1 {[%emt 0:00:26]} Nd2 {[%emt 0:00:10]} 69. Ne4+ $2 {[%emt 0:00:22] [#]} ({White should try} 69. Re8 $18) 69... Nxe4 $2 {[%emt 0:00:04]} (69... Kf5 $1 $17 {[%cal Rb6h6]} 70. Nd6+ (70. g4+ Kxf4 71. Kh3 Rh6+ 72. Kg2 Nf3 $19) 70... Rxd6 71. Re5+ Kf6) 70. Rxe4 $11 {[%emt 0:00:01]} Rb5 {[%emt 0:00:36]} 71. Ra4 {[%emt 0:00:09]} g6 {[%emt 0:00:24]} 72. Ra6+ {[%emt 0:00:19]} Kg7 {[%emt 0:00:13]} 73. Re6 {[%emt 0:00:51]} Rh5+ {[%emt 0:00:33]} 74. Kg4 {[%emt 0:00:00]} Ra5 {[%emt 0:00:07]} 75. Re5 {[%emt 0:00:00]} Ra3 {[%emt 0:00:11]} 76. Kh4 {[%emt 0:00:20]} Rf3 {[%emt 0:00:26]} 77. Rb5 {[%emt 0:00:38]} Kf6 {[%emt 0:00:25]} 78. Rb4 {[%emt 0:01:01]} Ra3 {[%emt 0:00:37]} 79. Rb6+ {[%emt 0:00:52]} Kg7 {[%emt 0:00:10]} 80. g4 {[%emt 0:00:32]} Ra5 {[%emt 0:00:14]} 81. Re6 {[%emt 0:00:20]} g5+ {[%emt 0:00:04]} 82. fxg5 {[%emt 0:00:20]} Ra1 {[%emt 0:00:07]} 83. g6 {[%emt 0:01:09]} Ra5 {[%emt 0:00:11]} 84. Kg3 {[%emt 0:00:43]} Ra3+ {[%emt 0:00:10]} 85. Kf4 {[%emt 0:00:11]} Ra4+ {[%emt 0:00:08]} 1/2-1/2

[Event "29th Bosnjaci Open 2025"]
[Site "Bosnjaci"]
[Date "2025.01.04"]
[Round "3.10"]
[White "Zadravec, Matija"]
[Black "Kukic, Lora"]
[Result "1/2-1/2"]
[ECO "B12"]
[WhiteElo "2283"]
[BlackElo "1961"]
[Annotator "TA"]
[PlyCount "56"]
[EventDate "2025.01.04"]
[EventType "swiss"]
[EventCountry "CRO"]
[SourceTitle "playchess.com"]
[Source "ChessBase"]
[SourceQuality "1"]
[TimeControl "5400+30"]

{[%evp 11,56,6,14,0,0,0,0,0,55,20,16,49,57,60,53,40,37,41,38,0,0,0,0,0,0,0,8,10,10,11,37,39,79,57,61,0,0,0,0,0,0,0,0,-6,0,-10,-4]} 1. e4 {[%emt 0:00:03]} c6 {[%emt 0:00:23]} 2. d4 {[%emt 0:00:06]} d5 {[%emt 0:00:09]} 3. e5 {[%emt 0:00:21]} Bf5 {[%emt 0:03:27]} 4. h4 {[%emt 0:00:41]} h5 {[%emt 0:02:49]} 5. Bd3 {[%emt 0:00:19]} Bxd3 {[%emt 0:01:34]} 6. Qxd3 {[%emt 0:00:03]} e6 {[%emt 0:00:43]} 7. Bg5 {[%emt 0:00:34]} Qb6 {[%emt 0:02:21]} 8. Nd2 {[%emt 0:01:20] Active counter play!} c5 {[%emt 0:01:42]} 9. c4 {[%emt 0:02:05]} cxd4 {[%emt 0:02:01]} (9... Qxb2 $11 10. Nb3 b5) 10. Ngf3 {[%emt 0:03:18] next cxd5 is good for White.} Nc6 {[%emt 0:05:31]} 11. O-O {[%emt 0:05:43][%mdl 1024] White has compensation.} Nb4 {[%emt 0:13:11]} 12. Qb3 {[%emt 0:05:20]} Ne7 {[%emt 0:16:04]} 13. a3 {[%emt 0:07:07]} (13. Nxd4 $5 Qxd4 14. Qxb4 $11) 13... Nbc6 {[%emt 0:00:11]} 14. Qd3 {[%emt 0:00:44]} Qc7 {[%emt 0:03:54]} 15. Rfe1 {[%emt 0:06:08]} dxc4 {[%emt 0:01:56]} 16. Nxc4 {[%emt 0:01:14]} Nf5 {[%emt 0:01:02] Repels Nd6+} 17. b4 {[%emt 0:10:00]} a6 {[%emt 0:01:10]} 18. Rac1 {[%emt 0:01:33][%cal Oc4a5]} Be7 {[%emt 0:02:48] [#]} 19. Na5 $1 {[%emt 0:01:48]} O-O {[%emt 0:03:47]} 20. Qe4 {[%emt 0:07:40]} Qd7 {[%emt 0:08:23]} 21. Nxc6 {[%emt 0:01:00]} bxc6 {[%emt 0:00:04]} 22. Bxe7 {[%emt 0:02:55]} (22. Qxc6 Qxc6 23. Rxc6 a5) 22... Qxe7 {[%emt 0:00:10]} 23. Rc4 {[%emt 0:08:08]} ({But not} 23. Qxc6 a5 $11) (23. Rxc6 Rfd8 $11) ({White should play} 23. Nxd4 $14 Nxd4 24. Qxd4) 23... a5 $11 {[%emt 0:05:20]} 24. Nxd4 {[%emt 0:00:56]} Nxd4 {[%emt 0:00:42]} 25. Rxd4 {[%emt 0:00:10][%cal Bc4d4,Bd4d3,Bd3g3][%mdl 32]} c5 {[%emt 0:00:38]} 26. bxc5 {[%emt 0:02:58]} Qxc5 {[%emt 0:00:37]} 27. Rd3 {[%emt 0:02:04]} Rad8 {[%emt 0:02:30]} 28. Rg3 {[%emt 0:05:35]} Qd4 {[%emt 0:05:45]} 1/2-1/2